[Event "Slovakia Chess Open 2024"]
[Site "Modra"]
[Date "2024.03.01"]
[Round "1.1"]
[White "Krivoborodov, Egor"]
[Black "Nosal, Tobias"]
[Result "1-0"]
[ECO "A80"]
[WhiteElo "2555"]
[BlackElo "1773"]
[Annotator "RC"]
[PlyCount "91"]
[EventDate "2024.02.29"]
[EventType "swiss"]
[EventCountry "SVK"]
[SourceTitle "playchess.com"]
[Source "ChessBase"]
[SourceQuality "1"]
[TimeControl "5400+30"]

1. d4 {[%emt 0:00:09]} e6 {[%emt 0:00:06]} 2. Nf3 {[%emt 0:00:21]} f5 {[%emt 0:00:19]} 3. Bf4 {[%emt 0:00:52]} Nf6 {[%emt 0:00:21]} 4. e3 {[%emt 0:00:03]} b6 {[%emt 0:00:21]} 5. Be2 {[%emt 0:01:36]} Bb7 {[%emt 0:00:38]} 6. O-O {[%emt 0:00:39]} Bd6 {[%emt 0:03:43]} 7. Bxd6 {[%emt 0:00:47]} cxd6 {[%emt 0:00:08]} 8. c4 {[%emt 0:00:02]} d5 {[%emt 0:08:22]} 9. Nc3 {[%emt 0:01:09]} O-O {[%emt 0:05:36]} 10. cxd5 {[%emt 0:11:12]} Nxd5 {[%emt 0:04:46]} 11. Nxd5 {[%emt 0:04:44]} Bxd5 {[%emt 0:04:46]} 12. Nd2 {[%emt 0:00:07]} Qg5 {[%emt 0:11:56]} 13. Bf3 {[%emt 0:00:16]} Bxf3 {[%emt 0:06:32]} 14. Nxf3 {[%emt 0:00:34]} Qe7 {[%emt 0:08:01]} 15. Rc1 {[%emt 0:06:34]} Qd6 {[%emt 0:08:19]} 16. Ne5 {[%emt 0:05:28]} Nc6 {[%emt 0:04:57]} 17. Nxc6 {[%emt 0:06:45]} dxc6 {[%emt 0:00:33]} 18. Qa4 {[%emt 0:00:11]} Rfc8 {[%emt 0:04:44]} 19. Rc3 {[%emt 0:00:09]} Rc7 {[%emt 0:03:48]} 20. Rfc1 {[%emt 0:00:07]} Rac8 {[%emt 0:01:53]} 21. g3 {[%emt 0:00:39]} h6 {[%emt 0:06:21]} 22. b4 {[%emt 0:01:11]} Qd5 {[%emt 0:05:23]} 23. Qc2 {[%emt 0:02:17]} Kf7 {[%emt 0:03:04]} 24. a3 {[%emt 0:00:46]} Qf3 {[%emt 0:03:26]} 25. a4 {[%emt 0:07:16]} h5 {[%emt 0:00:46]} 26. h4 {[%emt 0:00:42]} Qd5 {[%emt 0:02:01]} 27. Qe2 {[%emt 0:03:45]} g6 {[%emt 0:00:07]} 28. a5 {[%emt 0:00:15]} Ke7 {[%emt 0:02:41]} 29. axb6 {[%emt 0:01:51]} axb6 {[%emt 0:00:05]} 30. Qa6 {[%emt 0:00:04]} b5 {[%emt 0:01:11]} 31. Rc5 {[%emt 0:03:22]} Qd7 {[%emt 0:00:16]} 32. Qa1 {[%emt 0:00:46]} Kf7 {[%emt 0:00:46]} 33. Qc3 {[%emt 0:00:13]} Qd6 {[%emt 0:00:25]} 34. Kg2 {[%emt 0:00:16]} Qd7 {[%emt 0:00:20]} 35. Ra1 {[%emt 0:13:46]} Ra7 {[%emt 0:00:46]} 36. Rxa7 {[%emt 0:00:29]} Qxa7 {[%emt 0:00:04]} 37. Rxc6 {[%emt 0:00:06]} Qb7 {[%emt 0:00:35]} 38. d5 {[%emt 0:00:02]} Rxc6 {[%emt 0:00:52]} 39. dxc6 {[%emt 0:00:07]} Qc7 {[%emt 0:00:28]} 40. Qc5 {[%emt 0:00:05]} Qd8 {[%emt 0:00:32]} 41. Qxb5 {[%emt 0:00:28]} Qd1 {[%emt 0:00:31]} 42. Qb7+ {[%emt 0:00:13]} Kf6 {[%emt 0:00:17]} 43. c7 {[%emt 0:00:05]} g5 {[%emt 0:00:42]} 44. c8=Q {[%emt 0:00:17]} g4 {[%emt 0:00:31]} 45. Qh8+ {[%emt 0:00:16]} Kg6 {[%emt 0:00:17]} 46. Qhg7# {[%emt 0:00:07]} 1-0

[Event "Slovakia Chess Open 2024"]
[Site "Modra"]
[Date "2024.03.01"]
[Round "1.2"]
[White "Loffay, Pavol"]
[Black "Bochnicka, Vladimir"]
[Result "0-1"]
[ECO "A07"]
[WhiteElo "1753"]
[BlackElo "2413"]
[Annotator "RC"]
[PlyCount "58"]
[EventDate "2024.02.29"]
[EventType "swiss"]
[EventCountry "SVK"]
[SourceTitle "playchess.com"]
[Source "ChessBase"]
[SourceQuality "1"]
[TimeControl "5400+30"]

1. d3 {[%emt 0:00:06]} d5 {[%emt 0:00:18]} 2. Nf3 {[%emt 0:00:14]} Nf6 {[%emt 0:00:14]} 3. g3 {[%emt 0:00:21]} Bg4 {[%emt 0:00:19]} 4. Bg2 {[%emt 0:00:57]} c6 {[%emt 0:00:15]} 5. c3 {[%emt 0:02:18]} Nbd7 {[%emt 0:00:19]} 6. Qc2 {[%emt 0:00:55]} e5 {[%emt 0:00:41]} 7. Nbd2 {[%emt 0:01:36]} Be7 {[%emt 0:00:32]} 8. O-O {[%emt 0:00:41]} O-O {[%emt 0:01:10]} 9. e4 {[%emt 0:02:35]} h6 {[%emt 0:01:33]} 10. Re1 {[%emt 0:01:08]} Qc7 {[%emt 0:00:30]} 11. Nf1 {[%emt 0:09:48]} Rfd8 {[%emt 0:01:55]} 12. Ne3 {[%emt 0:04:58]} Be6 {[%emt 0:00:28]} 13. Bd2 {[%emt 0:09:42]} a5 {[%emt 0:06:36]} 14. a3 {[%emt 0:09:25]} dxe4 {[%emt 0:03:17]} 15. dxe4 {[%emt 0:01:24]} Nc5 {[%emt 0:00:15]} 16. c4 {[%emt 0:07:03]} Nfxe4 {[%emt 0:01:47]} 17. Bc3 {[%emt 0:00:46]} Nxc3 {[%emt 0:05:15]} 18. Qxc3 {[%emt 0:00:12]} e4 {[%emt 0:02:56]} 19. Nd4 {[%emt 0:11:43]} Bc8 {[%emt 0:00:33]} 20. b4 {[%emt 0:02:53]} Nd3 {[%emt 0:03:15]} 21. Red1 {[%emt 0:03:39]} axb4 {[%emt 0:00:16]} 22. axb4 {[%emt 0:02:11]} Bxb4 {[%emt 0:00:13]} 23. Qb3 {[%emt 0:01:19]} Rxa1 {[%emt 0:00:10]} 24. Rxa1 {[%emt 0:00:09]} Rxd4 {[%emt 0:00:29]} 25. Nc2 {[%emt 0:01:38]} Rd8 {[%emt 0:01:01]} 26. Nxb4 {[%emt 0:00:23]} Qb6 {[%emt 0:00:42]} 27. Rd1 {[%emt 0:00:57]} Nxb4 {[%emt 0:00:32]} 28. c5 {[%emt 0:04:30]} Rxd1+ {[%emt 0:00:23]} 29. Qxd1 {[%emt 0:00:02]} Qxc5 {[%emt 0:00:14]} 0-1

[Event "Slovakia Chess Open 2024"]
[Site "Modra"]
[Date "2024.03.01"]
[Round "1.3"]
[White "Shirinyan, Daniel"]
[Black "Fratric, Jakub"]
[Result "1-0"]
[ECO "A67"]
[WhiteElo "2177"]
[BlackElo "1750"]
[Annotator "RC"]
[PlyCount "49"]
[EventDate "2024.02.29"]
[EventType "swiss"]
[EventCountry "SVK"]
[SourceTitle "playchess.com"]
[Source "ChessBase"]
[SourceQuality "1"]
[TimeControl "5400+30"]

1. d4 {[%emt 0:00:06]} Nf6 {[%emt 0:00:19]} 2. c4 {[%emt 0:00:39]} c5 {[%emt 0:00:27]} 3. d5 {[%emt 0:00:05]} e6 {[%emt 0:00:09]} 4. Nc3 {[%emt 0:00:20]} exd5 {[%emt 0:00:14]} 5. cxd5 {[%emt 0:00:05]} d6 {[%emt 0:00:13]} 6. e4 {[%emt 0:00:23]} g6 {[%emt 0:00:13]} 7. f4 {[%emt 0:01:14]} Bg7 {[%emt 0:00:13]} 8. Bb5+ {[%emt 0:00:18]} Nfd7 {[%emt 0:00:24]} 9. Be2 {[%emt 0:00:13]} Qh4+ {[%emt 0:01:22]} 10. g3 {[%emt 0:00:21]} Qd8 {[%emt 0:00:34]} 11. Nf3 {[%emt 0:00:20]} O-O {[%emt 0:01:20]} 12. O-O {[%emt 0:00:07]} Na6 {[%emt 0:01:20]} 13. Kg2 {[%emt 0:07:17]} Nc7 {[%emt 0:01:25]} 14. f5 {[%emt 0:02:30]} Ne5 {[%emt 0:05:24]} 15. Bg5 {[%emt 0:01:32]} Bf6 {[%emt 0:00:45]} 16. Bxf6 {[%emt 0:03:23]} Qxf6 {[%emt 0:00:08]} 17. a4 {[%emt 0:10:42]} Rb8 {[%emt 0:03:49]} 18. Qd2 {[%emt 0:06:24]} Nxf3 {[%emt 0:27:38]} 19. Rxf3 {[%emt 0:00:31]} g5 {[%emt 0:02:49]} 20. h4 {[%emt 0:01:59]} gxh4 {[%emt 0:01:33]} 21. Rh1 {[%emt 0:04:03]} Kh8 {[%emt 0:05:53]} 22. Rf4 {[%emt 0:01:18]} Qd4 {[%emt 0:06:10]} 23. Rfxh4 {[%emt 0:00:29]} Qxd2 {[%emt 0:01:51]} 24. Rxh7+ {[%emt 0:00:03]} Kg8 {[%emt 0:00:15]} 25. f6 {[%emt 0:00:01]} 1-0

[Event "Slovakia Chess Open 2024"]
[Site "Modra"]
[Date "2024.03.01"]
[Round "1.4"]
[White "Zentko, Ladislav"]
[Black "Stevik, Patrik"]
[Result "0-1"]
[ECO "D02"]
[WhiteElo "1749"]
[BlackElo "2167"]
[Annotator "RC"]
[PlyCount "48"]
[EventDate "2024.02.29"]
[EventType "swiss"]
[EventCountry "SVK"]
[SourceTitle "playchess.com"]
[Source "ChessBase"]
[SourceQuality "1"]
[TimeControl "5400+30"]

1. Nf3 {[%emt 0:00:24]} d5 {[%emt 0:00:01]} 2. d4 {[%emt 0:00:20]} c5 {[%emt 0:00:01]} 3. c3 {[%emt 0:00:19]} Nc6 {[%emt 0:00:12]} 4. Bf4 {[%emt 0:00:11]} Nf6 {[%emt 0:00:43]} 5. e3 {[%emt 0:00:17]} Nh5 {[%emt 0:00:18]} 6. Ne5 {[%emt 0:03:06]} Nxf4 {[%emt 0:00:31]} 7. Nxc6 {[%emt 0:02:33]} bxc6 {[%emt 0:05:34]} 8. exf4 {[%emt 0:00:08]} Qb6 {[%emt 0:00:09]} 9. b3 {[%emt 0:04:03]} cxd4 {[%emt 0:01:55]} 10. c4 {[%emt 0:06:35]} e6 {[%emt 0:01:31]} 11. Bd3 {[%emt 0:01:44]} Bb4+ {[%emt 0:01:27]} 12. Kf1 {[%emt 0:02:58]} Ba6 {[%emt 0:00:29]} 13. Qe2 {[%emt 0:01:25]} O-O {[%emt 0:00:18]} 14. g3 {[%emt 0:05:09]} Rfd8 {[%emt 0:05:29]} 15. a3 {[%emt 0:05:00]} dxc4 {[%emt 0:01:32]} 16. Bxc4 {[%emt 0:05:13]} d3 {[%emt 0:01:01]} 17. Qd1 {[%emt 0:03:12]} Bxc4 {[%emt 0:00:30]} 18. bxc4 {[%emt 0:00:03]} Qd4 {[%emt 0:00:10]} 19. Ra2 {[%emt 0:01:48]} Qxc4 {[%emt 0:00:19]} 20. Rb2 {[%emt 0:01:44]} d2+ {[%emt 0:00:28]} 21. Kg2 {[%emt 0:00:06]} Ba5 {[%emt 0:00:35]} 22. Rc2 {[%emt 0:02:09]} Qd5+ {[%emt 0:00:45]} 23. f3 {[%emt 0:00:23]} Qd4 {[%emt 0:01:05]} 24. Rf1 {[%emt 0:02:42]} Rab8 {[%emt 0:00:06]} 0-1

[Event "Slovakia Chess Open 2024"]
[Site "Modra"]
[Date "2024.03.01"]
[Round "1.5"]
[White "Banas, Kamil"]
[Black "Banas, Samuel"]
[Result "1-0"]
[ECO "C80"]
[WhiteElo "2162"]
[BlackElo "1733"]
[Annotator "RC"]
[PlyCount "33"]
[EventDate "2024.02.29"]
[EventType "swiss"]
[EventCountry "SVK"]
[SourceTitle "playchess.com"]
[Source "ChessBase"]
[SourceQuality "1"]
[TimeControl "5400+30"]

1. e4 {[%emt 0:00:05]} e5 {[%emt 0:00:07]} 2. Nf3 {[%emt 0:00:07]} Nc6 {[%emt 0:00:06]} 3. Bb5 {[%emt 0:00:13]} a6 {[%emt 0:00:13]} 4. Ba4 {[%emt 0:00:07]} Nf6 {[%emt 0:00:34]} 5. O-O {[%emt 0:00:11]} b5 {[%emt 0:01:12]} 6. Bb3 {[%emt 0:00:06]} Nxe4 {[%emt 0:00:19]} 7. d4 {[%emt 0:02:39]} Nd6 {[%emt 0:08:02]} 8. dxe5 {[%emt 0:02:24]} Nb7 {[%emt 0:00:12]} 9. Ng5 {[%emt 0:04:25]} Qe7 {[%emt 0:06:07]} 10. Nxf7 {[%emt 0:01:46]} Nc5 {[%emt 0:06:19]} 11. Bg5 {[%emt 0:01:43]} Nxb3 {[%emt 0:02:13]} 12. Bxe7 {[%emt 0:00:09]} Nxa1 {[%emt 0:00:24]} 13. Nxh8 {[%emt 0:00:13]} Bxe7 {[%emt 0:00:32]} 14. Qd5 {[%emt 0:03:01]} Nxc2 {[%emt 0:01:06]} 15. Qf7+ {[%emt 0:00:26]} Kd8 {[%emt 0:01:46]} 16. Qg8+ {[%emt 0:00:08]} Bf8 {[%emt 0:00:12]} 17. Qxf8# {[%emt 0:00:08]} 1-0

[Event "Slovakia Chess Open 2024"]
[Site "Modra"]
[Date "2024.03.01"]
[Round "1.6"]
[White "Hitka, Dominik"]
[Black "Oruzinsky, Juraj"]
[Result "0-1"]
[ECO "D13"]
[WhiteElo "1709"]
[BlackElo "2160"]
[Annotator "RC"]
[PlyCount "84"]
[EventDate "2024.02.29"]
[EventType "swiss"]
[EventCountry "SVK"]
[SourceTitle "playchess.com"]
[Source "ChessBase"]
[SourceQuality "1"]
[TimeControl "5400+30"]

1. Nf3 {[%emt 0:00:08]} Nf6 {[%emt 0:00:43]} 2. c4 {[%emt 0:00:57]} c6 {[%emt 0:01:23]} 3. Nc3 {[%emt 0:01:09]} d5 {[%emt 0:00:52]} 4. cxd5 {[%emt 0:00:31]} cxd5 {[%emt 0:00:05]} 5. d4 {[%emt 0:00:17]} Nc6 {[%emt 0:00:28]} 6. h3 {[%emt 0:01:00]} a6 {[%emt 0:02:49]} 7. Bf4 {[%emt 0:01:36]} Bf5 {[%emt 0:03:04]} 8. a3 {[%emt 0:06:39]} e6 {[%emt 0:02:31]} 9. e3 {[%emt 0:01:21]} Bd6 {[%emt 0:06:56]} 10. Bxd6 {[%emt 0:00:50]} Qxd6 {[%emt 0:00:05]} 11. Bd3 {[%emt 0:00:56]} Bg6 {[%emt 0:00:53]} 12. b4 {[%emt 0:03:45]} b5 {[%emt 0:01:54]} 13. Bxg6 {[%emt 0:07:54]} hxg6 {[%emt 0:00:09]} 14. Nd2 {[%emt 0:00:56]} Nd7 {[%emt 0:14:30]} 15. Nb3 {[%emt 0:02:52]} Nb6 {[%emt 0:02:24]} 16. Nc5 {[%emt 0:01:43]} Qb8 {[%emt 0:13:45]} 17. Qb3 {[%emt 0:11:56]} g5 {[%emt 0:11:39]} 18. Rb1 {[%emt 0:08:14]} Nc4 {[%emt 0:03:36]} 19. a4 {[%emt 0:07:27]} g4 {[%emt 0:01:17]} 20. a5 {[%emt 0:04:20]} g3 {[%emt 0:03:34]} 21. Qa2 {[%emt 0:03:44]} Ra7 {[%emt 0:11:56]} 22. Qe2 {[%emt 0:05:12]} Rh6 {[%emt 0:06:14]} 23. f4 {[%emt 0:03:43]} Ne7 {[%emt 0:03:01]} 24. Qd3 {[%emt 0:03:12]} Qd6 {[%emt 0:02:46]} 25. O-O {[%emt 0:01:24]} Nf5 {[%emt 0:00:14]} 26. Rf3 {[%emt 0:01:11]} Qd8 {[%emt 0:00:30]} 27. Ne2 {[%emt 0:01:12]} Rg6 {[%emt 0:00:37]} 28. e4 {[%emt 0:01:33]} dxe4 {[%emt 0:00:42]} 29. Nxe4 {[%emt 0:01:58]} Rd7 {[%emt 0:00:07]} 30. Nc5 {[%emt 0:03:08]} Nxd4 {[%emt 0:01:04]} 31. Nxd7 {[%emt 0:00:18]} Nxf3+ {[%emt 0:00:08]} 32. Qxf3 {[%emt 0:00:56]} Qxd7 {[%emt 0:00:05]} 33. Qa8+ {[%emt 0:00:41]} Ke7 {[%emt 0:00:05]} 34. Qxa6 {[%emt 0:02:05]} e5 {[%emt 0:00:42]} 35. Qa8 {[%emt 0:00:47]} exf4 {[%emt 0:00:55]} 36. Re1 {[%emt 0:01:06]} Re6 {[%emt 0:00:41]} 37. Qb8 {[%emt 0:02:49]} Qd4+ {[%emt 0:03:04]} 38. Kh1 {[%emt 0:00:38]} Qf2 {[%emt 0:00:06]} 39. Rd1 {[%emt 0:00:51]} Nd6 {[%emt 0:02:49]} 40. Qc7+ {[%emt 0:01:19]} Kf8 {[%emt 0:00:17]} 41. Ng1 {[%emt 0:00:53]} g6 {[%emt 0:01:04]} 42. Rxd6 {[%emt 0:00:49]} Qxg1+ {[%emt 0:00:06]} 0-1

[Event "Slovakia Chess Open 2024"]
[Site "Modra"]
[Date "2024.03.01"]
[Round "1.7"]
[White "Smetana, Peter"]
[Black "Visvader, Kristof"]
[Result "1/2-1/2"]
[ECO "C62"]
[WhiteElo "1993"]
[BlackElo "1696"]
[Annotator "RC"]
[PlyCount "63"]
[EventDate "2024.02.29"]
[EventType "swiss"]
[EventCountry "SVK"]
[SourceTitle "playchess.com"]
[Source "ChessBase"]
[SourceQuality "1"]
[TimeControl "5400+30"]

1. e4 {[%emt 0:00:02]} e5 {[%emt 0:00:10]} 2. Nf3 {[%emt 0:00:08]} Nc6 {[%emt 0:00:07]} 3. Nc3 {[%emt 0:00:15]} Nf6 {[%emt 0:00:20]} 4. d4 {[%emt 0:00:16]} d6 {[%emt 0:00:30]} 5. Bb5 {[%emt 0:01:46]} Bd7 {[%emt 0:01:25]} 6. Bxc6 {[%emt 0:19:04]} Bxc6 {[%emt 0:00:29]} 7. Qd3 {[%emt 0:00:21]} exd4 {[%emt 0:04:03]} 8. Nxd4 {[%emt 0:00:14]} Qd7 {[%emt 0:02:23]} 9. O-O {[%emt 0:02:36]} O-O-O {[%emt 0:06:44]} 10. b4 {[%emt 0:09:58]} Qe8 {[%emt 0:15:21]} 11. Re1 {[%emt 0:03:39]} d5 {[%emt 0:03:28]} 12. b5 {[%emt 0:24:36]} dxe4 {[%emt 0:01:59]} 13. Qc4 {[%emt 0:00:25]} Bd5 {[%emt 0:05:50]} 14. Qa4 {[%emt 0:01:57]} Bc5 {[%emt 0:06:54]} 15. Be3 {[%emt 0:00:49]} Ng4 {[%emt 0:07:00]} 16. h3 {[%emt 0:05:10]} Nxe3 {[%emt 0:04:39]} 17. fxe3 {[%emt 0:00:21]} Qe5 {[%emt 0:02:51]} 18. Nxd5 {[%emt 0:12:18]} Rxd5 {[%emt 0:01:41]} 19. c3 {[%emt 0:00:26]} f5 {[%emt 0:02:01]} 20. Rf1 {[%emt 0:03:18]} Rf8 {[%emt 0:02:27]} 21. Rad1 {[%emt 0:04:53]} f4 {[%emt 0:02:35]} 22. Rxf4 {[%emt 0:00:47]} Rxf4 {[%emt 0:00:38]} 23. exf4 {[%emt 0:00:08]} Qxf4 {[%emt 0:00:32]} 24. Qc4 {[%emt 0:00:25]} Rg5 {[%emt 0:04:52]} 25. Qg8+ {[%emt 0:02:31]} Kd7 {[%emt 0:00:42]} 26. Qe6+ {[%emt 0:01:58]} Kd8 {[%emt 0:04:49]} 27. Qg8+ {[%emt 0:03:03]} Kd7 {[%emt 0:01:25]} 28. Qe6+ {[%emt 0:00:49]} Kd8 {[%emt 0:00:13]} 29. Rf1 {[%emt 0:01:46]} Qe5 {[%emt 0:03:51]} 30. Qg8+ {[%emt 0:00:31]} Qe8 {[%emt 0:01:55]} 31. Qc4 {[%emt 0:00:21]} Qd7 {[%emt 0:04:06]} 32. Qg8+ {[%emt 0:00:05]} 1/2-1/2

[Event "Slovakia Chess Open 2024"]
[Site "Modra"]
[Date "2024.03.01"]
[Round "1.8"]
[White "Pikulik, Roman"]
[Black "Galla, Richard"]
[Result "0-1"]
[ECO "B33"]
[WhiteElo "1675"]
[BlackElo "1975"]
[Annotator "NA RC"]
[PlyCount "28"]
[EventDate "2024.02.29"]
[EventType "swiss"]
[EventCountry "SVK"]
[SourceTitle "playchess.com"]
[Source "ChessBase"]
[SourceQuality "1"]
[TimeControl "5400+30"]

1. e4 {[%emt 0:00:04]} c5 {[%emt 0:00:18]} 2. Nf3 {[%emt 0:00:10]} Nc6 {[%emt 0:00:08]} 3. d4 {[%emt 0:00:13]} cxd4 {[%emt 0:00:10]} 4. Nxd4 {[%emt 0:00:11]} Nf6 {[%emt 0:00:17]} 5. Nc3 {[%emt 0:02:42]} e5 {[%emt 0:00:08]} 6. Nf5 {[%emt 0:03:27]} d5 {[%emt 0:00:40]} 7. Ng3 {[%emt 0:05:36]} Bb4 {[%emt 0:04:46]} 8. Bd2 {[%emt 0:06:18]} O-O {[%emt 0:08:13]} 9. Bd3 {[%emt 0:00:12]} Bg4 {[%emt 0:04:27]} 10. f3 {[%emt 0:12:56]} Be6 {[%emt 0:00:49]} 11. O-O {[%emt 0:04:16]} a6 {[%emt 0:12:00]} 12. f4 {[%emt 0:08:04]} Bc5+ {[%emt 0:03:08]} 13. Kh1 {[%emt 0:00:09]} Ng4 {[%emt 0:00:10]} 14. exd5 {[%emt 0:06:56]} Qh4 {[%emt 0:00:57]} 0-1

[Event "Slovakia Chess Open 2024"]
[Site "Modra"]
[Date "2024.03.01"]
[Round "1.9"]
[White "Hasala, Richard"]
[Black "Chojnacki, Kevin"]
[Result "1/2-1/2"]
[ECO "A48"]
[WhiteElo "1935"]
[BlackElo "1672"]
[Annotator "RC"]
[PlyCount "92"]
[EventDate "2024.02.29"]
[EventType "swiss"]
[EventCountry "SVK"]
[SourceTitle "playchess.com"]
[Source "ChessBase"]
[SourceQuality "1"]
[TimeControl "5400+30"]

1. d4 {[%emt 0:00:30]} Nf6 {[%emt 0:00:07]} 2. Nf3 {[%emt 0:00:07]} g6 {[%emt 0:00:26]} 3. e3 {[%emt 0:01:17]} c5 {[%emt 0:01:02]} 4. d5 {[%emt 0:01:59]} a6 {[%emt 0:03:14]} 5. c4 {[%emt 0:00:23]} d6 {[%emt 0:00:17]} 6. Nc3 {[%emt 0:00:08]} e6 {[%emt 0:00:02]} 7. e4 {[%emt 0:00:35]} exd5 {[%emt 0:00:06]} 8. exd5 {[%emt 0:00:08]} Bg7 {[%emt 0:02:43]} 9. Be2 {[%emt 0:02:55]} O-O {[%emt 0:00:13]} 10. O-O {[%emt 0:00:07]} Bg4 {[%emt 0:01:06]} 11. h3 {[%emt 0:03:28]} Bxf3 {[%emt 0:01:24]} 12. Bxf3 {[%emt 0:00:07]} Nbd7 {[%emt 0:00:28]} 13. Bf4 {[%emt 0:02:23]} Qc7 {[%emt 0:00:18]} 14. g4 {[%emt 0:04:44]} Rab8 {[%emt 0:02:50]} 15. a4 {[%emt 0:03:28]} b6 {[%emt 0:00:16]} 16. Qd2 {[%emt 0:01:27]} Ne5 {[%emt 0:14:21]} 17. Be2 {[%emt 0:08:47]} Qd7 {[%emt 0:06:20]} 18. Bg3 {[%emt 0:00:39]} Qc7 {[%emt 0:27:01]} 19. f4 {[%emt 0:00:26]} Ned7 {[%emt 0:00:30]} 20. Rae1 {[%emt 0:08:00]} h5 {[%emt 0:03:20]} 21. g5 {[%emt 0:00:57]} Ne8 {[%emt 0:02:06]} 22. Bd3 {[%emt 0:05:21]} Bd4+ {[%emt 0:03:13]} 23. Kh2 {[%emt 0:00:13]} Ng7 {[%emt 0:00:30]} 24. f5 {[%emt 0:08:39]} Ne5 {[%emt 0:00:41]} 25. f6 {[%emt 0:00:55]} Ne8 {[%emt 0:02:49]} 26. b3 {[%emt 0:03:24]} Qd7 {[%emt 0:02:27]} 27. Ne2 {[%emt 0:00:27]} Nxd3 {[%emt 0:02:07]} 28. Qxd3 {[%emt 0:00:52]} Be5 {[%emt 0:00:08]} 29. Nc3 {[%emt 0:01:16]} Bxc3 {[%emt 0:03:02]} 30. Qxc3 {[%emt 0:00:13]} b5 {[%emt 0:00:02]} 31. Re7 {[%emt 0:00:27]} Qd8 {[%emt 0:00:32]} 32. axb5 {[%emt 0:05:22]} axb5 {[%emt 0:01:45]} 33. Ra1 {[%emt 0:00:18]} bxc4 {[%emt 0:01:51]} 34. bxc4 {[%emt 0:00:22]} Qb6 {[%emt 0:03:00]} 35. Kg2 {[%emt 0:00:53]} Nc7 {[%emt 0:00:54]} 36. Qa5 {[%emt 0:01:38]} Qb2+ {[%emt 0:00:46]} 37. Bf2 {[%emt 0:00:13]} Ra8 {[%emt 0:00:54]} 38. Qxc7 {[%emt 0:02:08]} Rxa1 {[%emt 0:01:12]} 39. Qxd6 {[%emt 0:08:26]} Qc1 {[%emt 0:04:37]} 40. h4 {[%emt 0:13:35]} Qh1+ {[%emt 0:02:09]} 41. Kg3 {[%emt 0:00:06]} Ra3+ {[%emt 0:00:27]} 42. Re3 {[%emt 0:00:13]} Rxe3+ {[%emt 0:02:23]} 43. Bxe3 {[%emt 0:00:03]} Qe1+ {[%emt 0:00:30]} 44. Bf2 {[%emt 0:02:20]} Qc3+ {[%emt 0:00:13]} 45. Kh2 {[%emt 0:02:24]} Qxc4 {[%emt 0:00:25]} 46. Qxc5 {[%emt 0:00:32]} Qf4+ {[%emt 0:00:48]} 1/2-1/2

[Event "Slovakia Chess Open 2024"]
[Site "Modra"]
[Date "2024.03.01"]
[Round "1.10"]
[White "Gonda, Jan"]
[Black "Mruskovic, Radoslav"]
[Result "0-1"]
[ECO "E76"]
[WhiteElo "1657"]
[BlackElo "1933"]
[Annotator "RC"]
[PlyCount "52"]
[EventDate "2024.02.29"]
[EventType "swiss"]
[EventCountry "SVK"]
[SourceTitle "playchess.com"]
[Source "ChessBase"]
[SourceQuality "1"]
[TimeControl "5400+30"]

1. d4 {[%emt 0:00:08]} d6 {[%emt 0:00:13]} 2. c4 {[%emt 0:00:11]} Nf6 {[%emt 0:00:10]} 3. Nc3 {[%emt 0:00:39]} g6 {[%emt 0:00:11]} 4. e4 {[%emt 0:00:08]} Bg7 {[%emt 0:00:05]} 5. f4 {[%emt 0:00:12]} O-O {[%emt 0:00:15]} 6. Nf3 {[%emt 0:00:10]} Bg4 {[%emt 0:02:58]} 7. Be3 {[%emt 0:01:08]} Nbd7 {[%emt 0:01:43]} 8. Be2 {[%emt 0:00:30]} Bxf3 {[%emt 0:03:37]} 9. Bxf3 {[%emt 0:00:37]} e5 {[%emt 0:01:19]} 10. fxe5 {[%emt 0:00:56]} dxe5 {[%emt 0:00:19]} 11. d5 {[%emt 0:00:14]} b6 {[%emt 0:03:05]} 12. O-O {[%emt 0:00:14]} Ne8 {[%emt 0:00:13]} 13. Qc2 {[%emt 0:01:07]} Nd6 {[%emt 0:00:47]} 14. Be2 {[%emt 0:00:33]} f5 {[%emt 0:00:55]} 15. exf5 {[%emt 0:02:19]} gxf5 {[%emt 0:00:16]} 16. Bd3 {[%emt 0:06:50]} e4 {[%emt 0:00:36]} 17. Be2 {[%emt 0:00:17]} Ne5 {[%emt 0:01:57]} 18. b3 {[%emt 0:01:37]} Ng6 {[%emt 0:08:19]} 19. g3 {[%emt 0:04:08]} Be5 {[%emt 0:01:32]} 20. Rad1 {[%emt 0:06:41]} Qf6 {[%emt 0:02:51]} 21. Nb1 {[%emt 0:04:48]} f4 {[%emt 0:02:33]} 22. gxf4 {[%emt 0:00:42]} Nxf4 {[%emt 0:00:19]} 23. Kh1 {[%emt 0:04:12]} Qh4 {[%emt 0:01:33]} 24. Rg1+ {[%emt 0:09:13]} Kh8 {[%emt 0:03:02]} 25. Bd4 {[%emt 0:07:54]} Bxd4 {[%emt 0:00:30]} 26. Rxd4 {[%emt 0:01:49]} Nxe2 {[%emt 1:04:12]} 0-1

[Event "Slovakia Chess Open 2024"]
[Site "Modra"]
[Date "2024.03.01"]
[Round "1.11"]
[White "Melih, Mario"]
[Black "Smolka, Robert"]
[Result "1-0"]
[ECO "B34"]
[WhiteElo "1930"]
[BlackElo "1620"]
[Annotator "RC"]
[PlyCount "53"]
[EventDate "2024.02.29"]
[EventType "swiss"]
[EventCountry "SVK"]
[SourceTitle "playchess.com"]
[Source "ChessBase"]
[SourceQuality "1"]
[TimeControl "5400+30"]

1. e4 {[%emt 0:00:28]} c5 {[%emt 0:20:52]} 2. Nf3 {[%emt 0:00:51]} g6 {[%emt 0:09:54]} 3. d4 {[%emt 0:00:18]} cxd4 {[%emt 0:00:05]} 4. Nxd4 {[%emt 0:00:46]} Bg7 {[%emt 0:00:01]} 5. Nc3 {[%emt 0:01:00]} Nc6 {[%emt 0:02:36]} 6. Be3 {[%emt 0:00:35]} Qb6 {[%emt 0:11:35]} 7. Ndb5 {[%emt 0:08:17]} Qa5 {[%emt 0:06:32]} 8. Bd2 {[%emt 0:01:29]} Qd8 {[%emt 0:04:18]} 9. Nd5 {[%emt 0:05:50]} Be5 {[%emt 0:00:15]} 10. f4 {[%emt 0:01:19]} Bb8 {[%emt 0:10:20]} 11. Bc3 {[%emt 0:01:25]} e5 {[%emt 0:05:47]} 12. Na3 {[%emt 0:10:49]} Nf6 {[%emt 0:02:45]} 13. Qf3 {[%emt 0:02:38]} Nd4 {[%emt 0:02:41]} 14. Bxd4 {[%emt 0:00:29]} exd4 {[%emt 0:00:02]} 15. O-O-O {[%emt 0:01:05]} O-O {[%emt 0:01:35]} 16. Rxd4 {[%emt 0:01:39]} Nxd5 {[%emt 0:04:48]} 17. Rxd5 {[%emt 0:00:40]} b6 {[%emt 0:02:21]} 18. Bc4 {[%emt 0:02:45]} Bb7 {[%emt 0:00:15]} 19. Rd4 {[%emt 0:00:25]} Qc7 {[%emt 0:01:44]} 20. g3 {[%emt 0:01:41]} a6 {[%emt 0:00:15]} 21. Rhd1 {[%emt 0:01:02]} Rd8 {[%emt 0:02:15]} 22. f5 {[%emt 0:02:17]} b5 {[%emt 0:04:14]} 23. fxg6 {[%emt 0:00:43]} d5 {[%emt 0:01:49]} 24. gxh7+ {[%emt 0:01:16]} Kxh7 {[%emt 0:01:03]} 25. Bxd5 {[%emt 0:00:31]} Rc8 {[%emt 0:02:00]} 26. Bxb7 {[%emt 0:00:28]} Qxb7 {[%emt 0:00:18]} 27. Rd7 {[%emt 0:00:37]} 1-0